Workbook

Sheet 4 x 100 m
A1: ŠTAFETA 4x100 m ŽENSKE
A3: Proga | B3: Štartna. št. | C3: Program | D3: Prijav. čas | E3: Diskv. | F3: Rezultat | G3: Uvrst.
A4: 4 | B4: 4 | C4: OŠ Gustava Šiliha Maribor | D4: 00:01:10 | E4: =D4*0.85 -> 00:00:59.500 | F4: 00:01:08.700 | G4: 1.
A5: 5 | B5: 5 | C5: OŠ Stanka Vraza in Društvo Sožitje Ormož | D5: 00:01:11 | E5: =D5*0.85 -> 00:01:00.350 | F5: 00:01:10.700 | G5: 2.
A6: 3 | B6: 3 | C6: CVD Golovec Celje | D6: 00:01:20 | E6: =D6*0.85 -> 00:01:08 | F6: 00:01:28.200 | G6: 4.
A7: 6 | B7: 6 | C7: CVIU Velenje | D7: 00:01:22.300 | E7: =D7*0.85 -> 00:01:09.955 | F7: 00:01:25.300 | G7: 3.
A10: ŠTAFETA 4x100 m MOŠKI
A11: 1.skupina
A12: Proga | B12: Štartna. št. | C12: Program | D12: Prijav. čas | E12: Diskv. | F12: Rezultat | G12: Uvrst.
A13: 4 | B13: 4 | C13: Madžarska | F13: 00:00:53.100 | G13: 1.
A14: 5 | B14: 5 | C14: OŠ Gustava Šiliha Maribor | D14: 00:00:59 | E14: =D14*0.85 -> 00:00:50.150 | F14: 00:00:55.200 | G14: 2.
A15: 3 | B15: 3 | C15: CUDV Črna na Koroškem | D15: 00:01:00 | E15: 00:00:51 | F15: 00:00:59.100 | G15: 4.
A16: 6 | B16: 6 | C16: CJL Dečkova Levstikov trg | D16: 00:01:00 | E16: 00:00:51 | F16: 00:00:56.200 | G16: 3.
A17: 2 | B17: 2 | C17: CVD Golovec Celje | D17: 00:01:02 | E17: 00:00:52.700 | F17: 00:01:03.100 | G17: 5.
A19: ŠTAFETA 4x100 m MOŠKI
A20: 2.skupina
A21: Proga | B21: Štartna. št. | C21: Program | D21: Prijav. čas | E21: Diskv. | F21: Rezultat | G21: Uvrst.
A22: 4 | B22: 4 | C22: OŠ. IV Murska Sobota | D22: 00:01:07 | E22: 00:00:56.950 | F22: 00:01:03.700 | G22: 4.
A23: 5 | B23: 5 | C23: VDC Ajdovščina Vipava | D23: 00:01:09 | E23: 00:00:58.650 | F23: 00:01:01.300 | G23: 2.
A24: 3 | B24: 3 | C24: ZUDV Dornava | D24: 00:01:09.350 | E24: =D24*0.85 -> 00:00:58.948 | F24: 00:01:03.100 | G24: 3.
A25: 6 | B25: 6 | C25: Center Janeza Levca Lj OE Jarše | D25: 00:01:09.500 | E25: =D25*0.85 -> 00:00:59.075 | F25: 00:01:00.200 | G25: 1.
A26: 2 | B26: 2 | C26: II. OŠ Žalec | D26: 00:01:05 | E26: 00:00:55.250 | F26: 00:01:04.400 | G26: 5.
A28: ŠTAFETA 4x100 m MOŠKI
A29: 3.skupina
A30: 4 | B30: 4 | C30: Sožitje Mežiške doline | D30: 00:01:11.100 | E30: =D30*0.85 -> 00:01:00.435 | F30: 00:01:04.200 | G30: 1.
A31: 5 | B31: 5 | C31: VDC Tončke Hočevar | D31: 00:01:12 | E31: 00:01:01.200 | F31: 00:01:06.600 | G31: 2.
A32: 3 | B32: 3 | C32: OŠ Minke Namestnik Sonje | D32: 00:01:13.600 | E32: 00:01:02.560 | F32: 00:01:13.800 | G32: 3.
A33: 6 | B33: 6 | C33: VDC Šentjur enota Šentjur | D33: 00:01:14 | E33: 00:01:02.900 | F33: 00:01:15.100 | G33: 4.
A37: ŠTAFETA 4x100 m MOŠKI
A38: 4.skupina
A39: Proga | B39: Štartna. št. | C39: Program | D39: Prijavljen čas | E39: Diskv. | F39: Rezultat | G39: Uvrst.
A40: 4 | B40: 4 | C40: Sožitje Radovljica | D40: 00:01:17.100 | E40: =D40*0.85 -> 00:01:05.535 | F40: 00:01:11.100 | G40: 2.
A41: 5 | B41: 5 | C41: CUDV Radovljica | D41: 00:01:18 | E41: =D41*0.85 -> 00:01:06.300 | F41: 00:01:16.500 | G41: 3.
A42: 3 | B42: 3 | C42: VDC Slovenj Gradec | D42: 00:01:23.100 | E42: =D42*0.85 -> 00:01:10.635 | F42: 00:01:11 | G42: 1.
A43: 6 | B43: 6 | C43: CJL Dečkova Levstikov trg | D43: 00:01:17 | E43: =D43*0.85 -> 00:01:05.450 | F43: 00:01:05.300 | G43: diskv.

Sheet Tek na 50 m
A1: TEK NA 50m ŽENSKE
A3: Proga | B3: Ime | C3: Priimek | D3: Program | E3: Prijav. čas | F3: Diskv. | G3: Rez. | H3: Uvrst.
A4: 4 | B4: Tea | C4: Stropnik | D4: CVIU Velenje | E4: 14.6 | F4: =E4*0.8 -> 11.68 | G4: 13.6 | H4: 1.
A5: 5 | B5: Polona | C5: Mikolič | D5: VDC Šentjur enota Šmarje pri Jelšah | E5: 15.2 | F5: =E5*0.8 -> 12.16 | G5: 14.1 | H5: 2.
A6: 3 | B6: Vesna | C6: Matekelj | D6: DRUŠTVO SOŽITJE HRASTNIK | E6: 17.55 | F6: =E6*0.8 -> 14.04 | G6: 15.1 | H6: 3.
A7: 6 | B7: Katarina | C7: Petrovič | D7: DRUŠTVO SOŽITJE HRASTNIK | E7: 19.45 | F7: =E7*0.8 -> 15.56 | G7: 16.9 | H7: 4.
A8: 2 | B8: Katja | C8: Miličevič | D8: VDC SL. GRADEC | E8: 22.4 | F8: =E8*0.8 -> 17.92 | G8: 20.1 | H8: 5.
A10: TEK NA 50m MOŠKI
A12: Proga | B12: Ime | C12: Priimek | D12: Program | E12: Prijav. čas | F12: Diskv. | G12: Rez. | H12: Uvrst.
A13: 4 | B13: Miran | C13: Bunc | D13: ZUDV Dornava | E13: 11 | F13: =E13*0.8 -> 8.8 | G13: 12.3 | H13: 2.
A14: 5 | B14: Juš | C14: Golob | D14: CUDV Draga | E14: 14 | F14: =E14*0.8 -> 11.2 | G14: 11.2 | H14: 1.
A15: 3 | B15: Sandro | C15: Schergna | D15: Mitja Čuk | E15: 15 | F15: =E15*0.8 -> 12 | G15: 16.8 | H15: 4.
A16: 6 | B16: Albert | C16: Cakiči | D16: Sožitje Škofja Loka in OŠ Jela Janežiča | E16: 17.08 | F16: =E16*0.8 -> 13.664 | G16: 15.9 | H16: 3.

Sheet Tek na 100 m
A1: TEK NA 100m ŽENSKE
A2: 1. skupina
A3: Proga | B3: Ime | C3: Priimek | D3: Program | E3: Prijav. čas | F3: Diskv. | G3: Rez. | H3: Uvrst.
A4: 4 | B4: Neža | C4: Perdih | D4: CJL Dečkova-Levstikov trg | E4: 15.4 | F4: =E4*0.85 -> 13.09 | G4: 14.3 | H4: 1.
A5: 5 | B5: Katja | C5: Pegan | D5: VDC Ajdovščina-Vipava | E5: 16.36 | F5: 13.906 | G5: 16 | H5: 2.
A6: 3 | B6: Branka | C6: Sok | D6: Sožitje Ormož | E6: 16.8 | F6: 14.28 | G6: 16.3 | H6: 3.
A7: 6 | B7: Nika | C7: Marenec | D7: OŠ Minke Namestnik Sonja | E7: 16.9 | F7: 14.365 | G7: 18.4 | H7: 6.
A8: 2 | B8: Mateja | C8: Pušnik | D8: VDC Muc Braslovče | E8: 17.5 | F8: 14.875 | G8: 16.7 | H8: 4.
A9: 7 | B9: Lana | C9: Kuč | D9: Sožitje Litija in Šmartno | E9: 17.98 | F9: 15.283 | G9: 17.7 | H9: 5.
A11: TEK NA 100m ŽENSKE
A12: 2. skupina
A13: Proga | B13: Ime | C13: Priimek | D13: Program | E13: Prijav. čas | F13: Diskv. | G13: Rez. | H13: Uvrst.
A14: 4 | B14: Anita | C14: Berisha | D14: OŠ Gustava Šiliha | E14: 19.5 | F14: =E14*0.85 -> 16.575 | G14: 18.4 | H14: 1.
A15: 5 | B15: Jolanda | C15: Šerbinek | D15: Sožitje maribor | E15: 20.2 | F15: 17.17 | G15: 19 | H15: 2.
A16: 3 | B16: Kristina | C16: Sinčič | D16: SOŽITJE KAMNIK | E16: 20.3 | F16: 17.255 | G16: 20.3 | H16: 3.
A17: 6 | B17: Veronika | C17: Rednak | D17: II. OŠ Žalec | E17: 21 | F17: 17.85 | G17: 21.1 | H17: 5.
A18: 2 | B18: Anica | C18: Kunšek | D18: CVD Golovec | E18: 21 | F18: 17.85 | G18: 28.1 | H18: 6.
A19: 7 | B19: Slavica | C19: Šenveter | D19: Sožitje maribor | E19: 21.7 | F19: 18.445 | G19: 21.1 | H19: 4.
A21: TEK NA 100m ŽENSKE
A22: 3. skupina
A23: Proga | B23: Ime | C23: Priimek | D23: Program | E23: Prijav. čas | F23: Diskv. | G23: Rez. | H23: Uvrst.
A24: 4 | B24: Petra | C24: Razpotnik | D24: VDC Zagorje | E24: 22 | F24: =E24*0.85 -> 18.7 | G24: 20 | H24: 2.
A25: 5 | B25: Tjaša | C25: Trunk | D25: VDC Šentjur enota Šmarje pri Jelšah | E25: 22.1 | F25: 18.785 | G25: 19.6 | H25: 1.
A26: 3 | B26: Sabina | C26: Lišić | D26: VDC Zagorje | E26: 22.5 | F26: 19.125 | G26: 20.7 | H26: 4.
A27: 6 | B27: Urška | C27: Pavlin | D27: CJL Dečkova-Levstikov trg | E27: 22.9 | F27: 19.465 | G27: 18.4 | H27: diskv.
A28: 2 | B28: Eva | C28: Venišnik | D28: OŠ Glazija Celje | E28: 22.92 | F28: 19.482 | G28: 20.2 | H28: 3.
A29: 7 | B29: Urška | C29: Dolar | D29: II. OŠ Žalec | E29: 23 | F29: 19.55 | G29: 22.1 | H29: 5.
A31: TEK NA 100m ŽENSKE
A32: 4. skupina
A33: Proga | B33: Ime | C33: Priimek | D33: Program | E33: Prijav. čas | F33: Diskv. | G33: Rez. | H33: Uvrst.
A34: 4 | B34: Sara | C34: Potparić | D34: CJL OVI Jarše | E34: 23.1 | F34: =E34*0.85 -> 19.635 | G34: 26.2 | H34: 6.
A35: 3 | B35: Anja | C35: Menard | D35: CUDV Draga | E35: 23.3 | F35: 19.805 | G35: 23.4 | H35: 3.
A36: 6 | B36: Polona | C36: Doberšek | D36: DRUŠTVO SOŽITJE HRASTNIK | E36: 23.55 | F36: 20.0175 | G36: 21.8 | H36: 2.
A37: 2 | B37: Jasmina | C37: Bračun | D37: VDC Šentjur enota Šmarje pri Jelšah | E37: 23.6 | F37: 20.06 | G37: 20.6 | H37: 1.
A38: 7 | B38: Eva | C38: Škrjanec | D38: OŠ Stanka Vraza Ormož | E38: 24 | F38: 20.4 | G38: 24.6 | H38: 5.
A39: 1 | B39: Olga | C39: Ojstrič | D39: VDC Šentjur enota Slovenske Konjice | E39: 25.5 | F39: 21.675 | G39: 23.7 | H39: 4.
A47: TEK NA 100m ŽENSKE
A48: 5. skupina
A49: Proga | B49: Ime | C49: Priimek | D49: Program | E49: Prijav. čas | F49: Diskv. | G49: Rez. | H49: Uvrst.
A50: 4 | B50: Nina | C50: Kukovec | D50: Sožitje Ormož | E50: 26.18 | F50: =E50*0.85 -> 22.253 | G50: 24.5 | H50: 2.
A51: 5 | B51: Blanka | C51: Zvonarek | D51: VDC Šentjur enota Šmarje pri Jelšah | E51: 26.2 | F51: =E51*0.85 -> 22.27 | G51: 22.5 | H51: 1.
A52: 3 | B52: Irena | C52: Mamič | D52: CUDV Draga | E52: 27 | F52: =E52*0.85 -> 22.95 | G52: 25.1 | H52: 3.
A53: 6 | B53: Greta | C53: Carciotti | D53: Mitja Čuk Trst | E53: 30 | F53: =E53*0.85 -> 25.5 | G53: 35.5 | H53: 5.
A54: 2 | B54: Maura | C54: Spazzali | D54: Mitja Čuk Trst | E54: 30 | F54: =E54*0.85 -> 25.5 | G54: 25.6 | H54: 4.
A56: TEK NA 100m ŽENSKE-MLAJŠE
A58: Proga | B58: Ime | C58: Priimek | D58: Program | E58: Prijav. čas | F58: Diskv. | G58: Rez. | H58: Uvrst.
A59: 4 | B59: Špela | C59: Volmajer | D59: OŠ Gustava Šiliha | E59: 20 | F59: =E59*0.85 -> 17 | G59: 19.2 | H59: 1.
A60: 5 | B60: Hana | C60: Roš | D60: CJL OVI Jarše | E60: 21.3 | F60: =E60*0.85 -> 18.105 | G60: 23.1 | H60: 4.
A61: 3 | B61: Valentina | C61: Krenos | D61: OŠ IV Murska Sobota | E61: 21.5 | F61: =E61*0.85 -> 18.275 | G61: 20.1 | H61: 2.
A62: 6 | B62: Laura | C62: Roškar | D62: OŠ Stanka Vraza Ormož | E62: 25 | F62: =E62*0.85 -> 21.25 | G62: 22.8 | H62: 3.
A63: 2 | B63: Lea | C63: Kugler | D63: CVIU Velenje | E63: 26.1 | F63: =E63*0.85 -> 22.185 | G63: 23.4 | H63: 5.
A65: TEK NA 100m MOŠKI
A66: 1. skupina
A67: Proga | B67: Ime | C67: Priimek | D67: Program | E67: Prijav. čas | F67: Diskv. | G67: Rez. | H67: Uvrst.
A68: 4 | B68: Matej | C68: Istenič | D68: SOŽITJE KAMNIK | E68: 13.25 | F68: =E68*0.85 -> 11.2625 | G68: 13.1 | H68: 1.
A69: 5 | B69: Anton | C69: Ravnikar | D69: VDC Zagorje | E69: 13.5 | F69: 11.475 | G69: 13.9 | H69: 3.
A70: 3 | B70: Matic | C70: Tič | D70: OŠ Minke Namestnik Sonja | E70: 14.5 | F70: 12.325 | G70: 16.3 | H70: 6.
A71: 6 | B71: Peter | C71: Vnuk | D71: Sožitje maribor | E71: 14.8 | F71: 12.58 | G71: 15.6 | H71: 5.
A72: 2 | B72: Damjan | C72: Bošnjak | D72: Sožitje Radovljica | E72: 15 | F72: 12.75 | G72: 16.9 | H72: 7.
A73: 7 | B73: David | C73: Fajdiga | D73: VDC Ajdovščina-Vipava | E73: 15.1 | F73: 12.835 | G73: 13.8 | H73: 2.
A74: 1 | B74: Bruno | C74: Jakše | D74: SOŽITJE KAMNIK | E74: 15.1 | F74: 12.835 | G74: 15.2 | H74: 4.
A76: TEK NA 100m MOŠKI
A77: 2. skupina
A78: Proga | B78: Ime | C78: Priimek | D78: Program | E78: Prijav. čas | F78: Diskv. | G78: Rez. | H78: Uvrst.
A79: 4 | B79: Marko | C79: Bratušek | D79: vdc sožitje ptuj | E79: 15.21 | F79: =E79*0.85 -> 12.9285 | G79: 13.1 | H79: 1.
A80: 5 | B80: Tim | C80: Premzl | D80: ZUDV Dornava | E80: 15.3 | F80: 13.005 | G80: 14.2 | H80: 2.
A81: 3 | B81: Aleš | C81: Homar | D81: SOŽITJE KAMNIK | E81: 15.4 | F81: 13.09 | G81: 14.5 | H81: 4.
A82: 6 | B82: Amadej | C82: Gselman | D82: OŠ Gustava Šiliha | E82: 15.4 | F82: 13.09 | G82: 14.4 | H82: 3.
A83: 2 | B83: Anže | C83: Stojc Turk | D83: CJL Dečkova-Levstikov trg | E83: 15.9 | F83: 13.515 | G83: 15 | H83: 5.
A84: 7 | B84: Marjan | C84: Šalamun | D84: ZUDV Dornava | E84: 16.07 | F84: 13.6595 | G84: 16.2 | H84: 6.
A85: 1 | B85: Andrej | C85: Kropec | D85: OŠ Minke Namestnik Sonja | E85: 16.1 | F85: 13.685 | G85: 16.8 | H85: 7.
A93: TEK NA 100m MOŠKI
A94: 3. skupina
A95: Proga | B95: Ime | C95: Priimek | D95: Program | E95: Prijav. čas | F95: Diskv. | G95: Rez. | H95: Uvrst.
A96: 4 | B96: Gašper | C96: Zaviršek | D96: CJL Dečkova-Levstikov trg | E96: 16.3 | F96: =E96*0.85 -> 13.855 | G96: 14.2 | H96: 1.
A97: 5 | B97: Benjamin | C97: Volker | D97: Sožitje Mežiške doline | E97: 16.95 | F97: 14.4075 | G97: 15.3 | H97: 3.
A98: 3 | B98: Klemen | C98: Krulec | D98: II. OŠ Žalec | E98: 17 | F98: 14.45 | G98: 17.4 | H98: 6.
A99: 6 | B99: Dominik | C99: Zelenko | D99: ZUDV Dornava | E99: 17 | F99: 14.45 | G99: 15.1 | H99: 2.
A100: 2 | B100: Martin | C100: Gjorgiev | D100: CJL OVI Jarše | E100: 17.1 | F100: 14.535 | G100: 15.5 | H100: 4.
A101: 7 | B101: Tine | C101: Müller | D101: CJL OVI Jarše | E101: 17.6 | F101: 14.96 | G101: 16.1 | H101: 5.
A102: 1 | B102: Roman | C102: Povšnar | D102: SOŽITJE KAMNIK | E102: 17.7 | F102: 15.045 | G102: 20.3 | H102: 7.
A104: TEK NA 100m MOŠKI
A105: 4. skupina
A106: Proga | B106: Ime | C106: Priimek | D106: Program | E106: Prijav. čas | F106: Diskv. | G106: Rez. | H106: Uvrst.
A107: 4 | B107: Miha | C107: Dacar | D107: SOŽITJE KAMNIK | E107: 17.9 | F107: =E107*0.85 -> 15.215 | G107: 16 | H107: 2.
A108: 5 | B108: Klemen | C108: Jakič | D108: CJL Dečkova-Levstikov trg | E108: 18 | F108: 15.3 | G108: 17 | H108: 5.
A109: 3 | B109: Ernest | C109: Bikošek | D109: VDC Šentjur enota Šentjur | E109: 18 | F109: 15.3 | G109: 16.3 | H109: 3.
A110: 6 | B110: Boštjan | C110: Rančigaj | D110: VDC Muc Braslovče | E110: 18.2 | F110: 15.47 | G110: 16.8 | H110: 4.
A111: 2 | B111: Robert | C111: Cafuta | D111: Vdc sožitje ptuj | E111: 18.35 | F111: 15.5975 | G111: 15.9 | H111: 1.
A112: 7 | B112: Gregor | C112: Gril | D112: OŠ Glazija Celje | E112: 18.36 | F112: 15.606 | G112: 15.1 | H112: diskv.
A114: TEK NA 100m MOŠKI
A115: 5. skupina
A116: Proga | B116: Ime | C116: Priimek | D116: Program | E116: Prijav. čas | F116: Diskv. | G116: Rez. | H116: Uvrst.
A117: 4 | B117: Matej | C117: Skurnšek | D117: II.OŠ Žalec | E117: 18.5 | F117: =E117*0.85 -> 15.725 | G117: 18.7 | H117: 5.
A118: 5 | B118: Matjaž | C118: Tibola | D118: Sožitje Radovljica | E118: 18.7 | F118: 15.895 | G118: 18.7 | H118: 5.
A119: 3 | B119: Matjaž | C119: Kolarič | D119: DRUŠTVO SOŽITJE HRASTNIK | E119: 18.95 | F119: 16.1075 | G119: 18.6 | H119: 4.
A120: 6 | B120: Uroš | C120: Jelerčič | D120: VDC Ajdovščina-Vipava | E120: 19.19 | F120: 16.3115 | G120: 17.8 | H120: 3.
A121: 2 | B121: Matjaž | C121: Vovk | D121: VDC SL. GRADEC | E121: 19.4 | F121: 16.49 | G121: 17.6 | H121: 2.
A122: 7 | B122: Timi | C122: Metličar | D122: OŠ Minke Namestnik Sonja | E122: 19.6 | F122: 16.66 | G122: 17.5 | H122: 1.
A123: 1 | B123: Stojan | C123: Jelenič | D123: Mitja Čuk Trst | E123: 20 | F123: 17 | G123: 20.9 | H123: 7.
A125: TEK NA 100m MOŠKI
A126: 6. skupina
A127: Proga | B127: Ime | C127: Priimek | D127: Program | E127: Prijav. čas | F127: Diskv. | G127: Rez. | H127: Uvrst.
A128: 4 | B128: Jernej | C128: Bezjak | D128: Vdc sožitje ptuj | E128: 20.84 | F128: =E128*0.85 -> 17.714 | G128: 17.9 | H128: dis. Ov.
A129: 5 | B129: Bojan | C129: Sivka | D129: DRUŠTVO SOŽITJE HRASTNIK | E129: 21.15 | F129: 17.9775 | G129: 19.3 | H129: 3.
A130: 3 | B130: Friderik | C130: Koletnik | D130: CUDV Draga | E130: 21.2 | F130: 18.02 | G130: 18.2 | H130: 1.
A131: 6 | B131: Žan | C131: Turšič | D131: CUDV Draga | E131: 21.3 | F131: 18.105 | G131: 19.8 | H131: 5.
A132: 2 | B132: Marjan | C132: Burja | D132: SOŽITJE KAMNIK | E132: 21.3 | F132: 18.105 | G132: 19.4 | H132: 4.
A133: 7 | B133: Štefan | C133: Falnoga | D133: VDC Šentjur enota Slovenske Konjice | E133: 21.5 | F133: 18.275 | G133: 18.8 | H133: 2.
A134: 1 | B134: Jernej | C134: Felkl | D134: Sožitje Litija in Šmartno | E134: 21.6 | F134: 18.36 | G134: 20 | H134: 6.
A139: TEK NA 100m MOŠKI
A140: 7. skupina
A141: Proga | B141: Ime | C141: Priimek | D141: Program | E141: Prijav. čas | F141: Diskv. | G141: Rez. | H141: Uvrst.
A142: 4 | B142: Gregor | C142: Simončič | D142: DRUŠTVO SOŽITJE HRASTNIK | E142: 21.92 | F142: =E142*0.85 -> 18.632 | G142: 20.6 | H142: 2.
A143: 5 | B143: Franci | C143: Koren | D143: ZUDV Dornava | E143: 22 | F143: =E143*0.85 -> 18.7 | G143: 18.8 | H143: 1.
A144: 3 | B144: Goran | C144: Gjurasek | D144: Vdc sožitje ptuj | E144: 23.06 | F144: =E144*0.85 -> 19.601 | G144: 19.5 | H144: diskv.
A145: 6 | B145: Bojan | C145: Stradar | D145: DRUŠTVO SOŽITJE HRASTNIK | E145: 23.15 | F145: =E145*0.85 -> 19.6775 | G145: 21.1 | H145: 3.
A147: TEK NA 100m MOŠKI
A148: 8. skupina
A149: Proga | B149: Ime | C149: Priimek | D149: Program | E149: Prijav. čas | F149: Diskv. | G149: Rez. | H149: Uvrst.
A150: 5 | B150: Primož | C150: Žmavc | D150: SOŽITJE KAMNIK | E150: 24.3 | F150: =E150*0.85 -> 20.655 | G150: 22.4 | H150: 1.
A151: 3 | B151: Aleksander | C151: Sekulić | D151: VDC TONČKE HOČEVAR | E151: 25 | F151: =E151*0.85 -> 21.25 | G151: 27.7 | H151: 3.
A152: 6 | B152: Primož | C152: Plevčak | D152: VDC TONČKE HOČEVAR | E152: 32 | F152: =E152*0.85 -> 27.2 | G152: 27.6 | H152: 2.
A154: TEK NA 100m MOŠKI - MLAJŠI
A156: Proga | B156: Ime | C156: Priimek | D156: Program | E156: Prijav. čas | F156: Diskv. | G156: Rez. | H156: Uvrst.
A157: 4 | B157: Kevin | C157: Cvetko | D157: Sožitje Litija in Šmartno | E157: 16.62 | F157: =E157*0.85 -> 14.127 | G157: 16.8 | H157: 2.
A158: 5 | B158: David | C158: Vasič | D158: CJL Dečkova-Levstikov trg | E158: 17.5 | F158: =E158*0.85 -> 14.875 | G158: 15.9 | H158: 1.
A159: 3 | B159: Aljaž | C159: Rupnik | D159: CJL Dečkova-Levstikov trg | E159: 19.2 | F159: =E159*0.85 -> 16.32 | G159: 17.4 | H159: 3.
A160: 6 | B160: Sandi | C160: Glušič | D160: Sožitje Litija in Šmartno | E160: 20.55 | F160: =E160*0.85 -> 17.4675 | G160: 17.2 | H160: diskv.

Sheet Tek na 200 m
A1: TEK NA 200m MOŠKI
A2: 1. skupina
A3: Proga | B3: Ime | C3: Priimek | D3: Program | E3: Prijav. čas | F3: Diskv. | G3: Rez. | H3: Uvrst.
A4: 4 | B4: Zoltan | C4: Berta | D4: SO Hungary | E4: 27.15 | F4: =E4*0.85 -> 23.0775 | G4: 27.6 | H4: 2.
A5: 5 | B5: Ljubiša | C5: Mihajlović | D5: VDC TONČKE HOČEVAR | E5: 28.7 | F5: =E5*0.85 -> 24.395 | G5: 26.7 | H5: 1.
A6: 3 | B6: Timotej | C6: Breznik | D6: Sožitje maribor | E6: 29.4 | F6: =E6*0.85 -> 24.99 | G6: 29.2 | H6: 3.
A7: 6 | B7: Milan | C7: Fašing | D7: ZUDV Dornava | E7: 30.19 | F7: =E7*0.85 -> 25.6615 | G7: 30.1 | H7: 4.
A8: 2 | B8: Aleksander | C8: Boršič | D8: CVD Golovec | E8: 32.5 | F8: =E8*0.85 -> 27.625 | G8: 32.4 | H8: 5.
A10: TEK NA 200m MOŠKI
A11: 2. skupina
A12: Proga | B12: Ime | C12: Priimek | D12: Program | E12: Prijav. čas | F12: Diskv. | G12: Rez. | H12: Uvrst.
A13: 4 | B13: Damijan | C13: Naraločnik | D13: Sožitje Mežiške doline | E13: 33.9 | F13: =E13*0.85 -> 28.815 | G13: 31.6 | H13: 4.
A14: 5 | B14: Sašo | C14: Markač | D14: OŠ Gustava Šiliha | E14: 34 | F14: =E14*0.85 -> 28.9 | G14: 29 | H14: 1.
A15: 3 | B15: Matej | C15: Fabčič | D15: VDC Ajdovščina-Vipava | E15: 34.26 | F15: 29.121 | G15: 32.3 | H15: 5.
A16: 6 | B16: Alen | C16: Špilak | D16: OŠ IV Murska Sobota | E16: 34.36 | F16: 29.206 | G16: 31.4 | H16: 3.
A17: 2 | B17: Matej | C17: Celec | D17: OŠ IV Murska Sobota | E17: 34.8 | F17: 29.58 | G17: 31.3 | H17: 2.
A18: 7 | B18: Domen | C18: Bernad | D18: VDC TONČKE HOČEVAR | E18: 35 | F18: 29.75 | G18: 32.7 | H18: 6.
A20: TEK NA 200m MOŠKI
A21: 3. skupina
A22: Proga | B22: Ime | C22: Priimek | D22: Program | E22: Prijav. čas | F22: Diskv. | G22: Rez. | H22: Uvrst.
A23: 4 | B23: Srečko | C23: Trupkovič | D23: ZUDV Dornava | E23: 36.06 | F23: =E23*0.85 -> 30.651 | G23: 32.3 | H23: 1.
A24: 5 | B24: Simon | C24: Pavlič | D24: Sožitje Radovljica | E24: 37.3 | F24: 31.705 | G24: 36.1 | H24: 4.
A25: 3 | B25: Gašper | C25: Nadu | D25: CJL OVI Jarše | E25: 37.8 | F25: 32.13 | G25: 34.2 | H25: 2.
A26: 6 | B26: Žan | C26: Tušek | D26: Sožitje Škofja Loka in OŠ Jela Janežiča | E26: 38 | F26: 32.3 | G26: 34.5 | H26: 3.
A27: 2 | B27: Simon | C27: Špegel | D27: VDC SL. GRADEC | E27: 38.8 | F27: 32.98 | G27: 37.7 | H27: 5.
A28: 1 | B28: David | C28: Gosak | D28: OŠ V Parku Sl. Konjice | E28: 37.5 | F28: 31.875 | G28: 38.2 | H28: 6.
A30: TEK NA 200m MOŠKI
A31: 4. skupina
A32: Proga | B32: Ime | C32: Priimek | D32: Program | E32: Prijav. čas | F32: Diskv. | G32: Rez. | H32: Uvrst.
A33: 4 | B33: Danilo | C33: Doberšek | D33: VDC Šentjur enota Šentjur | E33: 40.05 | F33: =E33*0.85 -> 34.0425 | G33: 35.6 | H33: 2.
A34: 5 | B34: Sebastijan | C34: Doberšek | D34: VDC Šentjur enota Slovenske Konjice | E34: 40.1 | F34: =E34*0.85 -> 34.085 | G34: 36.3 | H34: 4.
A35: 3 | B35: Tomaž | C35: Janko | D35: OŠ IV Murska Sobota | E35: 40.1 | F35: =E35*0.85 -> 34.085 | G35: 35.4 | H35: 1.
A36: 6 | B36: Bojan | C36: Krajnc | D36: VDC SL. GRADEC | E36: 40.3 | F36: =E36*0.85 -> 34.255 | G36: 35.7 | H36: 3.
A37: 2 | B37: Anže | C37: Burek | D37: CJL Dečkova-Levstikov trg | E37: 41 | F37: =E37*0.85 -> 34.85 | G37: 31.9 | H37: diskv.
A39: TEK NA 200m MOŠKI
A40: 5. skupina
A41: Proga | B41: Ime | C41: Priimek | D41: Program | E41: Prijav. čas | F41: Diskv. | G41: Rez. | H41: Uvrst.
A42: 4 | B42: Gašper | C42: Bohinc | D42: Sožitje Radovljica | E42: 41.3 | F42: =E42*0.85 -> 35.105 | G42: 43.2 | H42: 3.
A43: 5 | B43: Bojan | C43: Bertoncelj | D43: CJL Dečkova-Levstikov trg | E43: 42 | F43: =E43*0.85 -> 35.7 | G43: 34.6 | H43: diskv.
A44: 3 | B44: Vlado | C44: Aldrijan | D44: VDC SL. GRADEC | E44: 43.2 | F44: =E44*0.85 -> 36.72 | G44: 38 | H44: 1.
A45: 6 | B45: Leopold | C45: Ojstrič | D45: VDC Šentjur enota Slovenske Konjice | E45: 44.2 | F45: =E45*0.85 -> 37.57 | G45: 39.3 | H45: 2.
A47: TEK NA 200m ŽENSKE
A48: 1. skupina
A49: Proga | B49: Ime | C49: Priimek | D49: Program | E49: Prijav. čas | F49: Diskv. | G49: Rez. | H49: Uvrst.
A50: 4 | B50: Anamari | C50: Hadner | D50: OŠ Gustava Šiliha | E50: 33 | F50: =E50*0.85 -> 28.05 | G50: 29.9 | H50: 1.
A51: 5 | B51: Lucija | C51: Meško | D51: Sožitje Ormož | E51: 38.5 | F51: =E51*0.85 -> 32.725 | G51: 41.1 | H51: 5.
A52: 3 | B52: Maja | C52: Miloševič | D52: CJL Dečkova-Levstikov trg | E52: 40.1 | F52: =E52*0.85 -> 34.085 | G52: 34.3 | H52: 2.
A53: 6 | B53: Tina | C53: Tučič | D53: VDC Šentjur enota Šentjur | E53: 40.23 | F53: =E53*0.85 -> 34.1955 | G53: 39.4 | H53: 3.
A54: 2 | B54: Irena | C54: Petre | D54: CVD Golovec | E54: 40.3 | F54: =E54*0.85 -> 34.255 | G54: 39.9 | H54: 4.
A56: TEK NA 200M ŽENSKE
A57: 2. skupina
A58: Proga | B58: Ime | C58: Priimek | D58: Program | E58: Prijav. čas | F58: Diskv. | G58: Rez. | H58: Uvrst.
A59: 4 | B59: Žana | C59: Justin | D59: Sožitje Škofja Loka in OŠ Jela Janežiča | E59: 42 | F59: =E59*0.85 -> 35.7 | G59: 44.7 | H59: 3.
A60: 5 | B60: Urška | C60: Potočar | D60: VDC TONČKE HOČEVAR | E60: 45 | F60: =E60*0.85 -> 38.25 | G60: 42.6 | H60: 1.
A61: 3 | B61: Tamara | C61: Korotaj | D61: OŠ Stanka Vraza Ormož | E61: 47.5 | F61: =E61*0.85 -> 40.375 | G61: 42.7 | H61: 2.
A62: 6 | B62: Mateja | C62: Novak Šolinc | D62: VDC Šentjur enota Šentjur | E62: 48.09 | F62: =E62*0.85 -> 40.8765 | G62: 45.2 | H62: 4.
A64: TEK NA 200M ŽENSKE
A65: 3. skupina
A66: Proga | B66: Ime | C66: Priimek | D66: Program | E66: Prijav. čas | F66: Diskv. | G66: Rez. | H66: Uvrst.
A67: 4 | B67: Vesna | C67: Jeseničnik | D67: CUDV Črna | E67: 49.43 | F67: =E67*0.85 -> 42.0155 | G67: 48.2 | H67: 2.
A68: 5 | B68: Nataša | C68: Golob | D68: VDC SL. GRADEC | E68: 49.7 | F68: =E68*0.85 -> 42.245 | G68: 45.5 | H68: 1.
A69: 3 | B69: Lea | C69: Bitenc | D69: CVIU Velenje | E69: 59.1 | F69: =E69*0.85 -> 50.235 | G69: 54.1 | H69: 3.
A70: 6 | B70: Monika | C70: Grgič | D70: Sožitje Škofja Loka in OŠ Jela Janežiča | E70: 62.05 | F70: =E70*0.85 -> 52.7425 | G70: 49.4 | H70: diskv.

Sheet Tek na 400 m
A1: TEK NA 400m ŽENSKE
A2: 1. skupina
A3: Proga | B3: Ime | C3: Priimek | D3: Program | E3: Prijav. čas | F3: Diskv. | G3: Rez. | H3: Uvrst.
A4: 4 | B4: Dorottya | C4: Racz | D4: SO Hungary | E4: 00:01:15 | F4: =E4*0.85 -> 00:01:03.750 | G4: 00:01:16.300 | H4: 1.
A5: 5 | B5: Tina | C5: Rous | D5: OŠ IV Murska Sobota | E5: 00:01:31.500 | F5: =E5*0.85 -> 00:01:17.775 | G5: 00:01:26.600 | H5: 2.
A6: 3 | B6: Anja | C6: Vidic ml. | D6: II. OŠ Žalec | E6: 00:01:35.600 | F6: 00:01:21.260 | G6: 00:01:36.100 | H6: 3.
A8: TEK NA 400m ŽENSKE
A9: 2. skupina
A10: Proga | B10: Ime | C10: Priimek | D10: Program | E10: Prijav. čas | F10: Diskv. | G10: Rez. | H10: Uvrst.
A11: 4 | B11: Stanka | C11: Pušnik | D11: CUDV Črna | E11: 00:01:55.120 | F11: 00:01:37.852 | G11: 00:01:35.200 | H11: diskv
A12: 5 | B12: Tjaša | C12: Beričnik | D12: CVIU Velenje | E12: 00:02:01 | F12: 00:01:42.850 | G12: 00:01:58.600 | H12: 1.
A13: 3 | B13: Barbara | C13: Škoflek | D13: CVIU Velenje | E13: 00:02:05 | F13: 00:01:46.250 | G13: 00:02:06.900 | H13: 2.
A15: TEK NA 400m MOŠKI
A16: 1. skupina
A17: Proga | B17: Ime | C17: Priimek | D17: Program | E17: Prijav. čas | F17: Diskv. | G17: Rez. | H17: Uvrst.
A18: 4 | B18: Dezso | C18: Racz | D18: SO Hungary | E18: 00:01:00 | F18: =E18*0.85 -> 00:00:51 | G18: 00:00:58.800 | H18: 1.
A19: 5 | B19: Jan | C19: Ostrš | D19: OŠ Gustava Šiliha | E19: 00:01:08 | F19: =E19*0.85 -> 00:00:57.800 | G19: 00:01:07.600 | H19: 3.
A20: 3 | B20: Sebastjan | C20: Ratej | D20: CVD Golovec | E20: 00:01:00 | F20: 00:00:51 | G20: 00:01:05.100 | H20: 2.
A21: 6 | B21: Matej | C21: Žgavec | D21: VDC Ajdovščina-Vipava | E21: 00:01:18 | F21: 00:01:06.300 | G21: 00:01:11.800 | H21: 5.
A22: 2 | B22: Martin | C22: Lešnik | D22: OŠ V Parku Sl. Konjice | E22: 00:01:05 | F22: 00:00:55.250 | G22: 00:01:09.500 | H22: 4.
A24: TEK NA 400m MOŠKI
A25: 2. skupina
A26: Proga | B26: Ime | C26: Priimek | D26: Program | E26: Prijav. čas | F26: Diskv. | G26: Rez. | H26: Uvrst.
A27: 4 | B27: Peter | C27: Kropf | D27: VDC Šentjur | E27: 00:01:22 | F27: 00:01:09.700 | G27: 00:01:13.100 | H27: 1.
A28: 5 | B28: Uroš | C28: Bernik | D28: Sožitje Škofja Loka in OŠ. | E28: 00:01:23.360 | F28: 00:01:10.856 | G28: 00:01:18 | H28: 3.
A29: 3 | B29: Gregor | C29: Juh | D29: Sožitje Mežiške doline | E29: 00:01:24.500 | F29: 00:01:11.825 | G29: 00:01:18.900 | H29: 4.
A30: 6 | B30: Primož | C30: Antolič | D30: ZUDV Dornava | E30: 00:01:25 | F30: 00:01:12.250 | G30: 00:01:11.700 | H30: diskv
A31: 2 | B31: Davor | C31: Senica | D31: CUDV Črna | E31: 00:01:26.750 | F31: 00:01:13.737 | G31: 00:01:17.200 | H31: 2.
A32: 7 | B32: Nejc | C32: Medved | D32: OŠ Minke Namestnik Sonja | E32: 00:01:27.400 | F32: 00:01:14.290 | G32: 00:01:20 | H32: 5.
A34: TEK NA 400m MOŠKI
A35: 3. skupina
A36: Proga | B36: Ime | C36: Priimek | D36: Program | E36: Prijav. čas | F36: Diskv. | G36: Rez. | H36: Uvrst.
A37: 4 | B37: Peter | C37: Prokofjev | D37: CUDV Draga | E37: 00:01:35 | F37: 00:01:20.750 | G37: 00:01:31.100 | H37: 1.
A38: 5 | B38: Aleš | C38: Masten | D38: VDC TONČKE HOČEVAR | E38: 00:01:36.800 | F38: =E38*0.85 -> 00:01:22.280 | G38: 00:01:19.700 | H38: diskv.
A39: 3 | B39: Alon | C39: Morina | D39: CJL Dečkova-Levstikov trg | E39: 00:01:52 | F39: 00:01:35.200 | G39: 00:01:26.100 | H39: diskv.

Sheet Tek na 800 m
A1: TEK NA 800m ŽENSKE
A2: Proga | B2: Ime | C2: Priimek | D2: Program | E2: Prijav. čas | F2: Diskv. | G2: Rez. | H2: Uvrst.
B3: Sergeja | C3: Ostrš | D3: OŠ Gustava Šiliha | E3: 00:03:05 | F3: =E3*0.85 -> 00:02:37.250 | G3: 00:02:52.200 | H3: 1.
B4: Nikolett | C4: Kelemen | D4: SO Hungary | E4: 00:03:12 | F4: =E4*0.85 -> 00:02:43.200 | G4: 00:03:11.700 | H4: 2.
B5: Kaja | C5: Praprotnik | D5: CVIU Velenje | E5: 00:03:15 | F5: =E5*0.85 -> 00:02:45.750 | G5: 00:03:13.400 | H5: 3.
B6: Sabina | C6: Cimperc ml. | D6: CVIU Velenje | E6: 00:03:27 | F6: =E6*0.85 -> 00:02:55.950 | G6: 00:03:18.700 | H6: 4.
B7: Vanja | C7: Zelenik | D7: Sožitje Ormož | E7: 00:03:45 | F7: =E7*0.85 -> 00:03:11.250 | G7: 00:03:42.700 | H7: 5.
A9: TEK NA 800m MOŠKI
A10: Proga | B10: Ime | C10: Priimek | D10: Program | E10: Prijav. čas | F10: Diskv. | G10: Rez. | H10: Uvrst.
B11: Mario | C11: Lakatos | D11: SO Hungary | E11: 00:02:25 | F11: =E11*0.85 -> 00:02:03.250 | G11: 00:02:23.400 | H11: 1.
B12: Marcel | C12: Ribič | D12: OŠ Gustava Šiliha | E12: 00:02:50 | F12: 00:02:24.500 | G12: 00:02:38.300 | H12: 2.
B13: Sašo | C13: Firbas | D13: CUDV Črna | E13: 00:02:58.800 | F13: 00:02:31.980 | G13: 00:03:16.300 | H13: 5.
B14: Jasmin | C14: Tabaković | D14: CJL OVI Jarše | E14: 00:03:04 | F14: 00:02:36.400 | G14: 00:03:03.700 | H14: 3.
B15: Simon | C15: Klep | D15: Sožitje Mežiške doline | E15: 00:03:26.800 | F15: 00:02:55.780 | G15: 00:03:04 | H15: 4.
B16: Darko | C16: Lovenjak | D16: OŠ IV Murska Sobota | E16: 00:03:28 | F16: 00:02:56.800 | G16: 00:03:16.700 | H16: 6.

Sheet Skok v daljino
A1: SKOK V DALJINO Z ZALETOM ŽENSKE
A2: Proga | B2: Ime | C2: Priimek | D2: Program | E2: Prijav. čas | F2: Diskv. | G2: Rez. | H2: Uvrst.
B3: Liljana | C3: Cestnik | D3: CVD Golovec | E3: 220 | F3: =E3*1.15 -> 253 | G3: 183 | H3: 2.
B4: Karmen | C4: Trstenjak | D4: Sožitje Ormož | E4: 210 | F4: =E4*1.15 -> 241.5 | G4: 225 | H4: 1.
B5: Cvetka | C5: Nežmah | D5: CVD Golovec | E5: 200 | F5: =E5*1.15 -> 230 | G5: 114 | H5: 3.
A7: SKOK V DALJINO Z ZALETOM MOŠKI
A8: 1. skupina
A9: Proga | B9: Ime | C9: Priimek | D9: Program | E9: Prijav. čas | F9: Diskv. | G9: Rez. | H9: Uvrst.
B10: Zoltan | C10: Hanak | D10: SO Hungary | E10: 550 | F10: =E10*1.15 -> 632.5 | G10: 537 | H10: 1.
B11: Martin | C11: Dernovšek | D11: II. OŠ Žalec | E11: 550 | F11: =E11*1.15 -> 632.5 | G11: 513 | H11: 2.
B12: Lukia | C12: Gračner | D12: CVD Golovec | E12: 480 | F12: =E12*1.15 -> 552 | G12: 240 | H12: 3.
A14: SKOK V DALJINO Z ZALETOM MOŠKI
A15: 2. skupina
A16: Proga | B16: Ime | C16: Priimek | D16: Program | E16: Prijav. čas | F16: Diskv. | G16: Rez. | H16: Uvrst.
B17: Jakob | C17: Šircelj ml. | D17: CJL OVI Jarše | E17: 390 | F17: =E17*1.15 -> 448.5 | G17: 388 | H17: 2.
B18: Mario | C18: Zajfrid | D18: OŠ Gustava Šiliha Maribor | E18: 380 | F18: =E18*1.15 -> 437 | G18: 393 | H18: 1.
B19: Silvo | C19: Anželj | D19: ZUDV Dornava | E19: 355 | F19: =E19*1.15 -> 408.25 | G19: 380 | H19: 3.
B20: Igor | C20: Podkrajšek | D20: VDC TONČKE HOČEVAR | E20: 235 | F20: =E20*1.15 -> 270.25 | G20: 190 | H20: 4.

Sheet Met vortexa
A1: MET VORTEXA MOŠKI
A2: 1.skupina
A3: Proga | B3: Ime | C3: Priimek | D3: Program | E3: Prijav. rez. | F3: Diskv. | G3: Rez. | H3: Uvrst.
B4: Andrej | C4: Rauh | D4: CUDV Črna | E4: 63.4 | F4: =E4*1.15 -> 72.91 | G4: 59.46 | H4: 1.
B5: Anže | C5: Gregorič | D5: CJL Dečkova-Levstikov trg | E5: 49 | F5: =E5*1.15 -> 56.35 | G5: 49.39 | H5: 2.
B6: Janez | C6: Pernek | D6: ZUDV Dornava | E6: 43 | F6: =E6*1.15 -> 49.45 | G6: 43.21 | H6: 3.
B7: Aleksander | C7: Slatič | D7: OŠ Gustava Šiliha | E7: 38 | F7: =E7*1.15 -> 43.7 | G7: 37.59 | H7: 4.
A9: MET VORTEXA MOŠKI
A10: 2.skupina
A11: Proga | B11: Ime | C11: Priimek | D11: Program | E11: Prijav. rez. | F11: Diskv. | G11: Rez. | H11: Uvrst.
B12: Alen | C12: Bernard | D12: OŠ Glazija Celje | E12: 25 | F12: =E12*1.15 -> 28.75 | G12: 25.49 | H12: 1.
B13: Tilen | C13: Kegl | D13: OŠ Stanka Vraza Ormož | E13: 21 | F13: =E13*1.15 -> 24.15 | G13: 18.33 | H13: 2.
B14: Miha | C14: Svetina | D14: VDC TONČKE HOČEVAR | E14: 15 | F14: =E14*1.15 -> 17.25 | G14: 19.32 | H14: diskv.

Sheet Suvanje krogle
A1: SUVANJE KROGLE ŽENSKE
A2: Proga | B2: Ime | C2: Priimek | D2: Program | E2: Prijav. rez. | F2: Diskv. | G2: Rez. | H2: Uvrst.
B3: Tatjana | C3: Lapornik | D3: CVD Golovec | E3: 6 | F3: =E3*1.15 -> 6.9 | G3: 6.27 | H3: 1.
B4: Veronika | C4: Čebulj | D4: Sožitje Mežiške doline | E4: 5.8 | F4: =E4*1.15 -> 6.67 | G4: 5.63 | H4: 2.
B5: Katarina | C5: Štrukelj | D5: VDC TONČKE HOČEVAR | E5: 5.6 | F5: =E5*1.15 -> 6.44 | G5: 5.22 | H5: 3.
A7: SUVANJE KROGLE MOŠKI
A8: 1. skupina
A9: Proga | B9: Ime | C9: Priimek | D9: Program | E9: Prijav. rez. | F9: Diskv. | G9: Rez. | H9: Uvrst.
B10: Manfred | C10: Kržišnik | D10: CUDV Črna | E10: 11.1 | F10: =E10*1.15 -> 12.765 | G10: 9.83 | H10: 1.
B11: Sebastjan | C11: Rojc | D11: CVD Golovec | E11: 11 | F11: 12.65 | G11: 8.56 | H11: 5.
B12: Vinko | C12: Žerko | D12: VDC Zagorje | E12: 10.5 | F12: 12.075 | G12: 9.04 | H12: 2.
B13: Toni | C13: Dolenc | D13: II. OŠ Žalec | E13: 10 | F13: 11.5 | G13: 8.7 | H13: 3.
B14: Jernej | C14: Bitenc | D14: CJL Dečkova-Levstikov trg | E14: 9.8 | F14: 11.27 | G14: 8.67 | H14: 4.
B15: Janez | C15: Močenik | D15: CUDV Dobrna | E15: 9.2 | F15: 10.58 | G15: 7.77 | H15: 7.
B16: Karel | C16: Perc | D16: VDC Zagorje | E16: 9 | F16: 10.35 | G16: 8.34 | H16: 6.
A18: SUVANJE KROGLE MOŠKI
A19: 2. skupina
A20: Proga | B20: Ime | C20: Priimek | D20: Program | E20: Prijav. rez. | F20: Diskv. | G20: Rez. | H20: Uvrst.
B21: Bojan | C21: Alijaj | D21: OŠ Gustava Šiliha | E21: 8.5 | F21: =E21*1.15 -> 9.775 | G21: 8.73 | H21: 1.
B22: Tine | C22: Bizjak | D22: CUDV Dobrna | E22: 8.5 | F22: 9.775 | G22: 3.4 | H22: 6.
B23: Jože | C23: Turšič | D23: VDC TONČKE HOČEVAR | E23: 7.1 | F23: 8.165 | G23: 7.31 | H23: 3.
B24: Ervin | C24: Kostanjšek | D24: VDC Zagorje | E24: 7 | F24: 8.05 | G24: 7.29 | H24: 4.
B25: Dušan | C25: Založnik | D25: CUDV Črna | E25: 6.7 | F25: 7.705 | G25: 7.48 | H25: 2.
B26: Miran | C26: Petek | D26: Sožitje Mežiške doline | E26: 6.8 | F26: 7.82 | G26: 6.85 | H26: 5.

Sheet Met žogice
A1: MET ŽOGICE ŽENSKE
A2: 1. skupina
A3: Proga | B3: Ime | C3: Priimek | D3: Program | E3: Prijav. rez. | F3: Diskv. | G3: Rez | H3: Uvrst.
B4: Marta | C4: Hergula | D4: ZUDV Dornava | E4: 19.5 | F4: =E4*1.2 -> 23.4 | G4: 20.62 | H4: 1.
B5: Breda | C5: Borko | D5: Sožitje Ormož | E5: 16.7 | F5: =E5*1.2 -> 20.04 | G5: 15.12 | H5: 3.
B6: Sanja | C6: Burič | D6: VDC Šentjur enota Šentjur | E6: 16.6 | F6: =E6*1.2 -> 19.92 | G6: 15.53 | H6: 2.
A8: MET ŽOGICE ŽENSKE
A9: 2. skupina
A10: Proga | B10: Ime | C10: Priimek | D10: Program | E10: Prijav. rez. | F10: Diskv. | G10: Rez | H10: Uvrst.
B11: Liljana | C11: Bogdanič | D11: Sožitje Mežiške doline | E11: 14.2 | F11: =E11*1.2 -> 17.04 | G11: 15.96 | H11: 1.
B12: Mojca | C12: Golob | D12: Sožitje Jesenice, Kranjska Gora, Žirovnica | E12: 13 | F12: =E12*1.2 -> 15.6 | G12: 12.25 | H12: 3.
B13: Breda | C13: Hohler | D13: VDC Šentjur enota Slovenske Konjice | E13: 12.1 | F13: =E13*1.2 -> 14.52 | G13: 15.12 | H13: 2.
B14: Jana | C14: Robnik | D14: Sožitje Mežiške doline | E14: 10.2 | F14: =E14*1.2 -> 12.24 | G14: 8.62 | H14: 4.
A16: MET ŽOGICE ŽENSKE
A17: 3. skupina
A18: Proga | B18: Ime | C18: Priimek | D18: Program | E18: Prijav. rez. | F18: Diskv. | G18: Rez | H18: Uvrst.
B19: Francesca | C19: Sfreddo | D19: Mitja Čuk Trst | E19: 8 | F19: =E19*1.2 -> 9.6 | G19: 7.15 | H19: 1.
B20: Patrizia | C20: Brandolin | D20: Mitja Čuk Trst | E20: 6 | F20: =E20*1.2 -> 7.2 | G20: 2.54 | H20: 3.
B21: Darja | C21: Kališnik | D21: SOŽITJE KAMNIK | E21: 5.5 | F21: =E21*1.2 -> 6.6 | G21: 5.52 | H21: 2.
B22: Sabina | C22: Pengal | D22: CUDV Dobrna | E22: 4.2 | F22: =E22*1.2 -> 5.04 | G22: 2.42 | H22: 4.
A24: MET ŽOGICE MOŠKI
A25: 1. skupina
A26: Proga | B26: Ime | C26: Priimek | D26: Program | E26: Prijav. rez. | F26: Diskv. | G26: Rez | H26: Uvrst.
B27: Gregor | C27: Sorčan | D27: VDC Muc Braslovče | E27: 21 | F27: =E27*1.2 -> 25.2 | G27: 20.67 | H27: 1.
B28: Drago | C28: Šimenc | D28: SOŽITJE KAMNIK | E28: 19 | F28: =E28*1.2 -> 22.8 | G28: 19.57 | H28: 2.
B29: Jože | C29: Sajovic | D29: Sožitje Jesenice, Kranjska Gora, Žirovnica | E29: 19 | F29: =E29*1.2 -> 22.8 | G29: 17.02 | H29: 3.
B30: Boštjan | C30: Bezlaj | D30: CUDV RADOVLJICA | E30: 17 | F30: =E30*1.2 -> 20.4 | G30: 16.35 | H30: 4.
A32: MET ŽOGICE MOŠKI
A33: 2. skupina
A34: Proga | B34: Ime | C34: Priimek | D34: Program | E34: Prijav. rez. | F34: Diskv. | G34: Rez | H34: Uvrst.
B35: Boris | C35: Rebernik | D35: VDC Šentjur enota Šentjur | E35: 15.2 | F35: =E35*1.2 -> 18.24 | G35: 12.75 | H35: 3.
B36: Dejan | C36: Sedovnik | D36: CVD Golovec | E36: 15 | F36: =E36*1.2 -> 18 | G36: 13.74 | H36: 1.
B37: Niko | C37: Žgank | D37: VDC Muc Braslovče | E37: 12.8 | F37: =E37*1.2 -> 15.36 | G37: 12.2 | H37: 4.
B38: Miran | C38: Krejan | D38: Sožitje Mežiške doline | E38: 12.1 | F38: =E38*1.2 -> 14.52 | G38: 12.76 | H38: 2.
A46: MET ŽOGICE MOŠKI
A47: 3. skupina
A48: Proga | B48: Ime | C48: Priimek | D48: Program | E48: Prijav. rez. | F48: Diskv. | G48: Rez | H48: Uvrst.
B49: Ermin | C49: Durmišević | D49: DRUŠTVO SOŽITJE HRASTNIK | E49: 11.35 | F49: =E49*1.2 -> 13.62 | G49: 13.28 | H49: 1.
B50: Rudolf | C50: Debeljak | D50: CVD Golovec | E50: 10 | F50: 12 | G50: 9.91 | H50: 2.
B51: Asmir | C51: Avdić | D51: Sožitje Jesenice, Kranjska Gora, Žirovnica | E51: 10 | F51: 12 | G51: 8.53 | H51: 4.
B52: Matic | C52: Žerovnik | D52: SOŽITJE KAMNIK | E52: 9 | F52: 10.8 | G52: 8.74 | H52: 3.
B53: Dušan | C53: Gor | D53: CVD Golovec | E53: 8 | F53: 9.6 | G53: 12.06 | H53: diskv.
B54: Zoran | C54: Hribar | D54: SOŽITJE KAMNIK | E54: 8 | F54: 9.6 | G54: 11.51 | H54: diskv.
B55: Drago | C55: Verdnik | D55: VDC Šentjur enota Slovenske Konjice | E55: 7.4 | F55: 8.88 | G55: 9.51 | H55: diskv.

Sheet Tek na 10 km
A1: TEK 10 KM - MOŠKI
A3: 1. skupina
A4: Proga | B4: Ime | C4: Priimek | D4: Program | E4: Prijav. čas | F4: Rez | G4: Uvrst.
B5: Bejt | C5: Hajrizi | D5: CUDV Draga | E5: 0.04027777778 | F5: 00:59:07 | G5: 3.
B6: Miha | C6: Zupan | D6: CUDV RADOVLJICA | E6: 01:18:00 | F6: 00:55:03 | G6: 1.
B7: Janez | C7: Luzar | D7: CUDV RADOVLJICA | E7: 01:18:00 | F7: 00:58:44 | G7: 2.
B8: Niko | C8: Koščak | D8: CUDV RADOVLJICA | E8: 01:18:00 | F8: 01:04:33 | G8: 4.
A10: TEK 10 KM - MOŠKI
A12: 2. skupina
A13: Proga | B13: Ime | C13: Priimek | D13: Program | E13: Prijav. čas | F13: Rez | G13: Uvrst.
B14: Janez | C14: Juvan | D14: CUDV Črna | F14: 0.03107638889 | G14: 1.
B15: Uroš | C15: Kotnik | D15: CUDV Črna | F15: 0.03813657407 | G15: 3.
B16: Damjan | C16: Gerič | D16: CUDV Črna | F16: 0.04710648148 | G16: 7.
B17: Elvir | C17: Babača | D17: Sožitje Škofja Loka | F17: 0.04373842593 | G17: 5.
B18: Aleš | C18: Leskovar | D18: ZUDV Dornava | F18: 0.04074074074 | G18: 4.
B19: Željko | C19: Najdek | D19: Sožitje Jesenice | F19: 0.03695601852 | G19: 2.
A21: TEK 10 KM - ŽENSKE
A23: Proga | B23: Ime | C23: Priimek | D23: Program | E23: Prijav. čas | F23: Rez | G23: Uvrst.
B24: Barbara | C24: Peterka | D24: CUDV RADOVLJICA | E24: 01:18:00 | F24: 01:10:47 | G24: 1.
